bitfinex-derivatives/quotes_ETHF0:USTF0_20250106
["timestamp","ask_amount","ask_price","bid_price","bid_amount"]
[1736162170576,3.91731634,3647.8,3647.7,0.17309025]
[1736162170773,3.91731634,3647.8,3647.7,0.44733025]
[1736162171776,3.64308634,3647.8,3647.7,0.44733025]
[1736162172077,3.64208634,3647.8,3647.7,0.44733025]
[1736162172672,3.64208634,3647.8,3647.7,0.86273025]
[1736162173278,1.4908,3647.8,3647.7,0.86273025]
[1736162173778,0.4238,3647.8,3647.7,0.86273025]
[1736162174470,0.4238,3647.8,3647.7,5.24730422]
[1736162174667,0.4266,3647.9,3647.8,0.27423]
[1736162175673,0.70082,3647.9,3647.8,0.44732025]
[1736162176077,0.4266,3647.9,3647.8,0.44732025]
[1736162176579,0.70082,3647.9,3647.8,0.44732025]
[1736162177081,1.76782,3647.9,3647.8,0.17309025]
[1736162177270,3.91910634,3647.9,3647.8,0.17309025]
[1736162178872,5.40900323,3647.9,3647.8,0.17309025]
[1736162180179,4.99758235,3647.9,3647.8,0.17309025]
[1736162181381,5.40900323,3647.9,3647.8,0.17309025]
[1736162183582,5.13478323,3647.9,3647.8,0.18610748]
[1736162183779,5.40900323,3647.9,3647.8,0.18610748]
[1736162184283,4.99758235,3647.9,3647.8,0.18610748]
[1736162184680,4.72336235,3647.9,3647.8,0.19912471]
[1736162184983,4.99758235,3647.9,3647.8,0.19912471]
[1736162185580,1.76782,3647.9,3647.8,0.19912471]
[1736162185785,1.4936,3647.9,3647.8,0.21061756]
[1736162186280,1.76782,3647.9,3647.8,0.21061756]
[1736162188193,2.17923411,3647.9,3647.8,0.21061756]
[1736162192893,2.17923411,3647.9,3647.8,41.01061756]
[1736162196405,6.48153767,3647.9,3647.8,41.01061756]
[1736162197601,2.17923411,3647.9,3647.8,41.01061756]
[1736162198208,1.11223411,3647.9,3647.8,41.01061756]
[1736162198505,2.17923411,3647.9,3647.8,41.01061756]
[1736162200607,6.48153767,3647.9,3647.8,41.01061756]
[1736162215503,2.17923411,3647.9,3647.8,41.01061756]
[1736162216611,1.76782,3647.9,3647.8,41.01061756]
[1736162217808,2.17923411,3647.9,3647.8,41.01061756]
[1736162220805,0.41141411,3647.9,3647.8,42.00309652]
[1736162221007,0.41141411,3647.9,3647.8,41.69434756]
[1736162221211,0.41141411,3647.9,3647.8,42.68682652]
[1736162221512,0.41141411,3647.9,3647.8,0.21061756]
[1736162221513,0.68563411,3647.9,3647.8,0.21061756]
[1736162221706,1.11963411,3647.9,3647.8,0.21061756]
[1736162222017,4.35741441,3647.9,3647.8,11.05552935]
[1736162223322,4.93330602,3647.9,3647.8,0.21061756]
[1736162224716,6.5169393,3647.9,3647.8,0.21061756]
[1736162226011,4.93330602,3647.9,3647.8,0.21061756]
[1736162226921,5.56230602,3647.9,3647.8,0.21061756]
[1736162227119,1.74863411,3647.9,3647.8,0.21061756]
[1736162228420,5.56230602,3647.9,3647.8,0.21061756]
[1736162229920,10.95851627,3647.9,3647.8,0.21061756]
[1736162232626,5.56230602,3647.9,3647.8,0.21061756]
[1736162235826,5.56630602,3647.9,3647.8,0.21061756]
[1736162237124,4.49930602,3647.9,3647.8,0.21061756]
[1736162237424,5.56630602,3647.9,3647.8,0.21061756]
[1736162240127,1.75263411,3647.9,3647.8,0.21061756]
[1736162242532,5.56549612,3647.9,3647.8,0.21061756]
[1736162242830,10.96170637,3647.9,3647.8,0.21061756]
[1736162250430,5.56549612,3647.9,3647.8,0.21061756]
[1736162250737,8.77329612,3647.9,3647.8,0.21061756]
[1736162252533,0.27425,3647.5,3647.4,4.29996124]
[1736162253235,0.69745,3647.5,3647.4,4.29996124]
[1736162253437,3.90525,3647.5,3647.4,4.29996124]
[1736162253637,3.90525,3647.5,3647.0,8.58293547]
[1736162253638,7.85527612,3647.5,3647.0,4.29996124]
[1736162253838,1.26675896,3647.1,3647.0,4.29996124]
[1736162254038,2.33375896,3647.1,3647.0,4.29996124]
[1736162255035,2.47089307,3647.1,3646.7,40.8]
[1736162255235,1.26677896,3646.8,3646.7,40.8]
[1736162255640,0.27431,3646.7,3646.6,4.29996124]
[1736162256035,0.27431,3646.7,3646.6,45.09996124]
[1736162256842,0.27431,3646.7,3646.6,40.8]
[1736162257439,0.27431,3646.7,3646.6,41.07432]
[1736162258242,2.42966532,3646.7,3646.6,41.07432]
[1736162258540,3.49666532,3646.7,3646.6,41.07432]
[1736162259535,1.34131,3646.7,3646.6,41.07432]
[1736162260244,1.34131,3646.7,3646.6,40.8]
[1736162260446,1.34131,3646.7,3646.6,41.07432]
[1736162262444,1.067,3646.7,3646.6,41.07432]
[1736162262637,1.34131,3646.7,3646.6,41.07432]
[1736162262837,3.14783428,3646.8,3646.7,0.27431]
[1736162262838,3.42214428,3646.8,3646.7,0.27431]
[1736162263038,4.48414428,3646.8,3646.7,0.27431]
[1736162263339,0.27431,3646.7,3646.6,41.07432]
[1736162263841,2.32878896,3646.8,3646.6,41.07432]
[1736162264447,2.05447896,3646.8,3646.6,41.07432]
[1736162264644,0.27431,3646.7,3646.6,41.07432]
[1736162265542,0.27431,3646.7,3646.6,40.8]
[1736162267155,0.27431,3646.7,3646.6,41.07432]
[1736162267759,0.27431,3646.7,3646.6,0.27432]
[1736162268151,0.27431,3646.7,3646.4,1.43537896]
[1736162268152,2.32878896,3646.8,3646.7,0.27431]
[1736162268358,2.05447896,3646.8,3646.5,40.8]
[1736162268559,0.27432,3646.7,3646.6,0.27431]
[1736162270056,2.59705532,3646.9,3646.6,0.99247896]
[1736162270265,2.15535532,3646.9,3646.8,1.26677896]
[1736162270461,3.21735532,3646.9,3646.8,1.26677896]
[1736162271061,1.062,3646.9,3646.8,1.26677896]
[1736162275066,0.99247896,3647.1,3647.0,0.27429]
[1736162275255,2.05447896,3647.1,3647.0,0.27429]
[1736162275659,2.05447896,3647.1,3647.0,0.71619]
[1736162276467,1.062,3647.1,3647.0,0.71619]
[1736162279555,1.062,3647.1,3647.0,1.70866896]
[1736162282466,2.15535532,3647.3,3647.2,0.27427]
[1736162282659,2.15535532,3647.3,3647.2,1.26674896]
[1736162283061,2.15535532,3647.3,3647.2,0.27427]
[1736162283267,2.15535532,3647.3,3647.2,1.26674896]
[1736162284661,1.062,3647.6,3647.2,5.2924402]
[1736162284860,1.062,3647.6,3647.5,1.26672896]
[1736162285264,1.062,3647.6,3647.5,2.09622896]
[1736162291068,1.062,3647.6,3647.5,42.89622896]
[1736162291268,0.438,3648.0,3647.5,42.62197896]
[1736162291571,1.062,3648.0,3647.9,1.26669896]
[1736162291962,1.062,3648.0,3647.9,1.71359896]
[1736162293177,0.4277,3648.1,3647.9,1.43937896]
[1736162293370,1.4877,3648.1,3648.0,0.27421]
[1736162297579,1.76191,3648.1,3647.9,1.26668896]
[1736162298274,1.76191,3648.1,3648.0,0.27421]
[1736162298574,0.4277,3648.1,3648.0,0.27421]
[1736162298777,0.4294,3648.2,3648.1,0.27421]
[1736162298978,0.4294,3648.2,3648.1,1.26668896]
[1736162300275,0.4294,3648.2,3647.9,0.27422]
[1736162300276,0.27421,3648.1,3647.9,0.27422]
[1736162300577,0.4239,3648.0,3647.9,0.27422]
[1736162300972,0.69811,3648.0,3647.9,0.27422]
[1736162301280,0.4239,3648.0,3647.9,0.27422]
[1736162302680,0.69811,3648.0,3647.9,0.27422]
[1736162303775,0.4239,3648.0,3647.9,0.27422]
[1736162303979,0.70361,3648.2,3648.1,0.27421]
[1736162304179,0.4294,3648.2,3648.0,0.27421]
[1736162304473,0.27421,3648.1,3648.0,1.26668896]
[1736162306274,0.4294,3648.2,3648.0,0.99247896]
[1736162306475,0.7036,3648.2,3648.1,0.27421]
[1736162306781,0.7036,3648.2,3648.0,0.99247896]
[1736162306782,0.27421,3648.1,3648.0,1.26668896]
[1736162308783,0.7036,3648.2,3648.1,0.27421]
[1736162309081,1.7636,3648.2,3648.1,0.27421]
[1736162309382,1.4894,3648.2,3648.1,0.27421]
[1736162309679,1.7636,3648.2,3648.1,0.27421]
[1736162313383,0.27421,3648.1,3648.0,1.67918896]
[1736162313573,1.4894,3648.2,3648.0,1.40497896]
[1736162313778,1.7636,3648.2,3648.1,0.27421]
[1736162313977,1.4894,3648.2,3648.1,0.27421]
[1736162314182,1.7636,3648.2,3648.1,0.27421]
[1736162314583,1.4894,3648.2,3648.1,0.27421]
[1736162314793,1.7636,3648.2,3648.1,0.27421]
[1736162317888,0.27419,3648.3,3648.2,0.27419]
[1736162318185,1.33419,3648.3,3648.2,4.47446896]
[1736162318388,0.27419,3648.3,3648.2,4.47446896]
[1736162318586,1.06,3648.3,3648.2,4.47447896]
[1736162319587,1.33419,3648.3,3648.2,4.47447896]
[1736162322791,1.06,3648.3,3648.2,4.47447896]
[1736162322993,1.33419,3648.3,3648.2,4.47447896]
[1736162323189,0.27419,3648.3,3648.2,4.47447896]
[1736162324092,1.11829,3648.4,3648.3,0.27419]
[1736162325895,2.15535532,3648.7,3648.2,8.5002402]
[1736162326089,2.15535532,3648.7,3648.6,2.25912792]
[1736162326294,2.15535532,3648.7,3648.6,5.46692792]
[1736162326494,2.15535532,3648.7,3648.6,46.26692792]
[1736162326793,2.15535532,3648.7,3648.6,45.27444896]
[1736162327199,2.15535532,3648.7,3648.6,45.71334896]
[1736162328096,0.4282,3648.8,3648.7,0.27416]
[1736162328296,3.62215532,3649.2,3648.7,0.99247896]
[1736162328496,3.62215532,3649.2,3649.0,3.48194]
[1736162328497,0.4282,3649.1,3649.0,3.48194]
[1736162328893,2.15535532,3649.2,3649.0,3.2078]
[1736162329193,3.21435532,3649.2,3649.1,0.71303]
[1736162329402,3.21435532,3649.2,3649.1,1.12783]
[1736162329700,3.21435532,3649.2,3649.1,2.12030896]
[1736162329701,1.059,3649.2,3649.1,2.12030896]
[1736162330193,2.15535532,3649.3,3649.1,1.84617896]
[1736162330391,3.21435532,3649.3,3649.2,0.27412]
[1736162330591,3.14783428,3649.3,3649.0,3.2078]
[1736162330791,3.14783428,3649.3,3648.7,4.29996124]
[1736162330792,1.67781896,3649.1,3648.7,4.29996124]
[1736162330993,1.26662896,3648.8,3648.7,2.94356124]
[1736162331197,1.26662896,3648.8,3648.7,5.77611045]
[1736162331402,1.26662896,3648.8,3648.7,0.81362801]
[1736162332700,0.27419,3648.3,3648.1,0.2742]
[1736162333004,1.3332,3648.2,3648.0,0.27421]
[1736162333195,1.059,3648.1,3648.0,0.27421]
[1736162335003,1.33321,3648.1,3648.0,0.27421]
[1736162335904,0.27421,3648.0,3647.9,3.48202]
[1736162337409,0.27421,3648.0,3647.9,44.28202]
[1736162338204,1.33321,3648.1,3648.0,0.27421]
[1736162338399,1.059,3648.1,3647.9,44.0078]
[1736162338605,0.27421,3648.0,3647.9,44.28201]
[1736162341809,1.33321,3648.0,3647.9,44.28201]
[1736162342601,0.27421,3648.0,3647.9,44.28201]
[1736162342809,1.33321,3648.0,3647.9,44.28201]
[1736162343910,1.059,3648.0,3647.9,44.28201]
[1736162344208,1.33321,3648.0,3647.9,44.28201]
[1736162344416,1.059,3648.0,3647.9,44.28201]
[1736162345513,2.15283383,3648.3,3647.9,44.0078]
[1736162345810,2.15283383,3648.3,3648.2,0.2742]
[1736162346011,3.21183383,3648.3,3648.2,0.2742]
[1736162346805,1.059,3648.3,3648.2,0.2742]
[1736162347611,1.33319,3648.3,3648.2,0.2742]
[1736162347808,1.059,3648.3,3648.2,0.2742]
[1736162348006,1.33319,3648.3,3648.2,0.2742]
[1736162348204,1.059,3648.3,3647.9,44.0078]
[1736162348404,0.27421,3648.2,3648.1,0.2742]
[1736162348604,1.059,3648.3,3647.9,3.2078]
[1736162348816,0.27421,3648.1,3648.0,0.27421]
[1736162351523,2.42703383,3648.2,3648.1,0.27421]
[1736162351708,2.15283383,3648.2,3648.1,0.27421]
[1736162352922,2.15283383,3648.2,3648.0,0.27421]
[1736162353215,0.27421,3648.1,3648.0,0.27421]
[1736162356515,2.42703383,3648.2,3648.1,0.27421]
[1736162359510,0.79583383,3648.2,3648.1,0.27421]
[1736162360719,0.79583383,3648.2,3648.1,1.47388362]
[1736162361120,1.07003383,3648.2,3648.1,1.47388362]
[1736162361317,1.059,3648.3,3648.0,0.27421]
[1736162361515,1.059,3648.3,3647.9,3.2078]
[1736162361516,0.27421,3648.0,3647.9,3.2078]
[1736162364014,2.19877075,3648.0,3647.4,3.2078]
[1736162364217,0.27425,3647.5,3647.4,3.2078]
[1736162364416,1.33325,3647.5,3647.4,3.48206]
[1736162366321,1.059,3647.5,3646.9,3.48209]
[1736162366517,0.27429,3647.0,3646.9,3.48209]
[1736162367026,0.2743,3646.8,3646.7,9.78305868]
[1736162367216,3.53207075,3646.8,3646.7,9.78305868]
[1736162367524,3.53207075,3646.8,3646.7,8.58293547]
[1736162368926,3.25777075,3646.8,3646.2,0.27434]
[1736162369127,0.27433,3646.5,3646.2,0.27434]
[1736162369328,0.27433,3646.4,3646.2,0.27434]
[1736162369726,0.27431,3646.7,3646.2,0.27434]
[1736162370021,0.27434,3646.4,3646.2,0.27434]
[1736162370522,3.25777075,3646.8,3646.1,3.2078]
[1736162370523,0.27435,3646.3,3646.1,3.2078]
[1736162370722,0.27435,3646.2,3646.1,3.2078]
[1736162372027,0.27435,3646.2,3646.1,3.48216]
[1736162372228,0.27435,3646.2,3646.1,3.2078]
[1736162372526,0.27435,3646.2,3646.1,44.0078]
[1736162373521,1.33335,3646.2,3646.1,44.28216]
[1736162373727,0.27433,3646.5,3646.4,0.27433]
[1736162374130,1.33333,3646.5,3646.4,0.27433]
[1736162374919,1.059,3646.5,3646.4,0.27433]
[1736162375520,7.54,3647.4,3646.3,0.68586]
[1736162375727,0.27427,3647.2,3647.0,0.27429]
[1736162375925,0.27427,3647.2,3647.1,1.56378]
[1736162376624,1.059,3647.3,3647.1,42.36378]
[1736162376824,0.27427,3647.2,3647.1,42.0895]
[1736162377229,0.27427,3647.2,3647.1,42.36378]
[1736162377527,1.33327,3647.3,3647.1,42.36378]
[1736162378723,1.059,3647.3,3647.1,42.0895]
[1736162378930,0.27427,3647.2,3647.1,42.0895]
[1736162379234,0.27427,3647.2,3647.1,42.36378]
[1736162380034,0.27427,3647.2,3647.1,42.0895]
[1736162380732,0.27427,3647.2,3647.1,1.2895]
[1736162380928,7.54,3647.4,3647.1,1.2895]
[1736162381129,0.27427,3647.2,3647.1,42.36378]
[1736162381438,1.33327,3647.3,3647.1,42.36378]
[1736162381730,1.33327,3647.3,3647.1,1.56378]
[1736162382133,1.059,3647.3,3647.1,1.56378]
[1736162382433,0.27427,3647.2,3647.1,1.56378]
[1736162382834,1.33327,3647.3,3647.1,1.56378]
[1736162383131,0.27427,3647.2,3647.1,1.56378]
[1736162384027,1.059,3647.3,3647.1,1.56378]
[1736162384230,0.27427,3647.2,3647.1,1.56378]
[1736162384429,1.33327,3647.3,3647.1,1.56378]
[1736162384628,0.27427,3647.2,3647.1,1.56378]
[1736162384830,0.27427,3647.2,3647.1,1.2895]
[1736162385024,0.27427,3647.2,3647.1,1.56378]
[1736162391937,0.27427,3647.2,3647.1,1.2895]
[1736162392240,0.27427,3647.2,3647.1,1.56378]
[1736162397845,0.27427,3647.2,3647.1,42.36378]
[1736162399535,0.27427,3647.2,3647.1,1.56378]
[1736162399741,0.27427,3647.2,3647.1,3.76255075]
[1736162400844,0.27427,3647.2,3647.1,3.48827075]
[1736162401045,0.27427,3647.2,3647.1,3.76255075]
[1736162404343,1.059,3647.3,3647.1,3.48827075]
[1736162404554,0.27423,3647.8,3647.7,0.27423]
[1736162404755,1.34023,3647.8,3647.7,2.47301075]
[1736162405161,1.34023,3647.8,3647.7,3.29941075]
[1736162406555,1.34023,3647.8,3647.7,1.10064]
[1736162406749,1.34023,3647.8,3647.7,0.8264]
[1736162406954,0.23671269,3647.7,3647.6,3.2078]
[1736162407255,0.66181269,3647.7,3647.6,3.2078]
[1736162407761,0.27427,3647.3,3647.2,1.14666]
[1736162408758,0.27427,3647.3,3647.2,0.8724]
[1736162409162,0.27428,3647.1,3647.0,3.48209]
[1736162409361,1.34028,3647.1,3647.0,3.2078]
[1736162411564,1.066,3647.1,3646.9,0.4108]
[1736162411768,0.27429,3647.0,3646.9,0.4108]
[1736162411963,1.066,3647.1,3646.6,3.2078]
[1736162412164,1.066,3647.1,3646.6,3.6499]
[1736162412165,0.27431,3646.7,3646.6,3.6499]
[1736162412364,0.27431,3646.7,3646.6,44.4499]
[1736162412567,0.27431,3646.7,3646.6,44.48742731]
[1736162414759,0.71251,3646.7,3646.6,44.48742731]
[1736162415767,1.14721,3646.7,3646.6,44.48742731]
[1736162415966,1.14721,3646.7,3646.6,44.04532731]
[1736162416166,1.14721,3646.7,3646.6,3.24532731]
[1736162416563,1.14721,3646.7,3646.6,44.04532731]
[1736162416764,1.14721,3646.7,3646.6,0.03752731]
[1736162417268,3.34598075,3646.7,3646.6,0.03752731]
[1736162417463,0.27436,3646.0,3645.9,6.42315151]
[1736162417770,1.33636,3646.0,3645.9,6.46067882]
[1736162418172,1.33636,3646.0,3645.9,0.03752731]
[1736162419873,1.33636,3646.0,3645.9,0.31189731]
[1736162420073,1.33636,3646.0,3645.9,0.03752731]
[1736162420574,1.33636,3646.0,3645.9,0.31189731]
[1736162421076,0.27436,3646.0,3645.9,0.31189731]
[1736162421268,1.33636,3646.0,3645.9,0.03752731]
[1736162421576,1.33636,3646.0,3645.9,40.83752731]
[1736162423170,1.33636,3646.0,3645.9,40.87505462]
[1736162424878,3.2313822,3646.5,3645.9,43.07382537]
[1736162425082,1.063,3646.0,3645.9,41.14942462]
[1736162425377,3.2313822,3646.5,3645.9,44.08285462]
[1736162425575,1.33734,3646.4,3646.3,0.27433]
[1736162425874,1.33733,3646.4,3646.3,0.27433]
[1736162426277,1.33733,3646.4,3646.3,0.34938462]
[1736162427269,1.33733,3646.4,3646.3,0.07505462]
[1736162427477,1.33733,3646.4,3646.3,0.34939462]
[1736162427971,1.33733,3646.4,3646.3,0.07505462]
[1736162428179,1.33733,3646.4,3646.3,0.34939462]
[1736162428570,1.33733,3646.4,3646.3,0.11258193]
[1736162430781,1.76273,3646.4,3646.3,0.11258193]
[1736162433076,6.76273,3646.4,3646.3,0.11258193]
[1736162433478,1.76273,3646.4,3646.3,0.11258193]
[1736162433982,1.76273,3646.4,3646.3,0.15010924]
[1736162436583,6.76273,3646.4,3646.3,0.15010924]
[1736162436879,0.27443,3645.1,3645.0,3.2078]
[1736162437085,1.33743,3645.1,3645.0,3.6555]
[1736162438680,1.33743,3645.1,3645.0,0.4477]
[1736162438882,0.27446,3644.7,3644.6,3.2078]
[1736162439282,0.27446,3644.7,3644.6,3.24532731]
[1736162440286,0.27446,3644.7,3644.6,0.03752731]
[1736162441691,3.2078,3645.3,3644.7,0.27446]
[1736162441886,3.2313822,3645.4,3644.7,0.27446]
[1736162441887,0.27444,3645.1,3644.9,0.27444]
[1736162442191,0.27443,3645.1,3645.0,0.03752731]
[1736162442388,0.27443,3645.1,3645.0,40.83752731]
[1736162443989,1.063,3645.1,3645.0,40.83752731]
[1736162444194,1.063,3645.3,3645.2,0.27442]
[1736162444495,1.063,3645.3,3645.2,2.47319075]
[1736162444697,1.063,3645.3,3645.2,2.54824537]
[1736162447593,1.063,3645.3,3645.2,2.98234537]
[1736162448399,0.3845,3645.3,3645.2,2.98234537]
[1736162451298,0.65892,3645.3,3645.2,2.98234537]
[1736162451689,0.65892,3645.3,3645.2,0.50915462]
[1736162453495,0.65892,3645.3,3645.2,0.78357462]
[1736162453694,0.65892,3645.3,3645.2,0.50915462]
[1736162458496,3.86672,3645.3,3645.2,0.07505462]
[1736162458999,4.31432,3645.3,3645.2,0.07505462]
[1736162460710,3.86672,3645.3,3645.2,0.07505462]
[1736162464305,0.65892,3645.3,3645.2,0.07505462]
[1736162465602,3.2313822,3645.5,3645.2,0.07505462]
[1736162465802,1.33842,3645.4,3645.3,0.4345]
[1736162466003,1.33842,3645.4,3645.3,0.8749]
[1736162466202,1.33842,3645.4,3645.3,41.6749]
[1736162466710,0.27442,3645.4,3645.3,41.74995462]
[1736162466903,1.33842,3645.4,3645.3,41.74995462]
[1736162467709,1.33842,3645.4,3645.3,0.94995462]
[1736162470309,1.33842,3645.4,3645.3,1.22437462]
[1736162470700,0.4358,3645.6,3645.3,0.94995462]
[1736162470904,0.7102,3645.6,3645.5,0.2744]
[1736162471111,1.7742,3645.6,3645.5,0.2744]
[1736162471607,0.2744,3645.5,3645.4,0.69861]
[1736162471813,0.19934538,3645.5,3645.4,0.69861]
[1736162472606,1.26334538,3645.5,3645.4,0.69861]
[1736162473612,1.26334538,3645.5,3645.4,0.4242]
[1736162477715,0.27442,3645.2,3645.1,40.8]
[1736162477915,0.27442,3645.2,3645.1,41.48773]
[1736162478417,4.70707337,3645.5,3645.1,41.2133]
[1736162478716,0.27442,3645.3,3645.2,0.27442]
[1736162481015,2.43013895,3645.3,3645.2,0.27442]
[1736162481215,0.27442,3645.2,3645.1,41.48773]
[1736162483224,2.43013895,3645.3,3645.2,0.27442]
[1736162483522,3.49113895,3645.3,3645.2,0.27442]
[1736162485020,1.33542,3645.3,3645.2,4.55469125]
[1736162487822,1.33542,3645.3,3645.2,10.96239063]
[1736162488128,1.061,3645.3,3645.2,10.96239063]
[1736162488420,1.33542,3645.3,3645.2,10.96239063]
[1736162489421,1.061,3645.3,3645.2,10.96239063]
[1736162490428,2.43013895,3645.4,3645.2,10.68797063]
[1736162490624,2.43013895,3645.4,3645.3,0.27442]
[1736162490825,3.49113895,3645.4,3645.3,0.27442]
[1736162491726,3.49113895,3645.4,3645.3,4.57374042]
[1736162492629,2.15571895,3645.4,3645.3,6.77251117]
[1736162493626,2.15571895,3645.4,3645.3,4.57374042]
[1736162494621,2.15571895,3645.5,3645.3,10.68768614]
[1736162494921,2.15571895,3645.5,3645.4,0.27441]
[1736162495120,2.15571895,3645.5,3645.4,0.72321]
[1736162495725,2.15571895,3645.5,3645.4,5.02167069]
[1736162498824,2.43011895,3645.5,3645.4,5.02167069]
[1736162499828,2.43011895,3645.5,3645.4,0.72321]
[1736162500022,2.15571895,3645.5,3645.4,0.72321]
[1736162503832,3.21671895,3645.5,3645.4,5.02167069]
[1736162505126,1.061,3645.5,3645.4,5.02167069]
[1736162505631,2.15571895,3645.6,3645.4,4.74726069]
[1736162505832,2.15571895,3645.6,3645.5,0.2744]
[1736162506033,3.21671895,3645.6,3645.5,0.7044]
[1736162506433,3.49110895,3645.6,3645.5,0.7044]
[1736162507134,3.49110895,3645.6,3645.5,1.69803078]
[1736162507532,2.15571895,3645.6,3645.5,1.69803078]
[1736162508135,2.15571895,3645.6,3645.5,2.89862854]
[1736162508439,2.15571895,3645.6,3645.5,43.69862854]
[1736162509630,1.06,3646.0,3645.9,0.27437]
[1736162509824,1.06,3646.0,3645.9,4.47580078]
[1736162510940,1.06,3646.0,3645.9,8.76974987]
[1736162511140,1.06,3646.0,3645.9,7.77611909]
[1736162511338,2.15571895,3646.1,3646.0,0.27436]
[1736162511538,3.21571895,3646.1,3646.0,0.27436]
[1736162511741,2.15571895,3646.1,3646.0,0.71916]
[1736162512043,2.15571895,3646.2,3646.0,0.4448]
[1736162512239,3.21571895,3646.2,3646.1,2.4753879]
[1736162512436,3.2313822,3646.3,3646.1,2.4753879]
[1736162512641,1.95630115,3646.3,3646.2,41.07435]
[1736162513143,1.95630115,3646.3,3646.2,47.27494776]
[1736162513556,1.95630115,3646.3,3646.2,42.27494776]
[1736162513947,1.33429,3647.0,3646.9,0.2743]
[1736162514339,1.06,3647.0,3646.9,0.2743]
[1736162514551,0.8717,3647.1,3646.9,0.2743]
[1736162514755,1.06,3647.0,3646.8,0.2743]
[1736162515051,1.06,3647.0,3646.9,0.2743]
[1736162516245,1.33429,3647.0,3646.9,0.2743]
[1736162516550,1.33429,3647.0,3646.6,3.8936]
[1736162516551,0.27431,3646.7,3646.6,3.48211]
[1736162517039,1.33431,3646.7,3646.6,3.48211]
[1736162517749,1.33431,3646.7,3646.6,0.27431]
[1736162518251,0.27433,3646.6,3646.5,0.27432]
[1736162518549,1.13403,3646.6,3646.5,0.27432]
[1736162519652,0.8597,3646.6,3646.5,0.27432]
[1736162520646,0.8597,3646.6,3646.5,3.48212]
[1736162520845,0.425,3646.6,3646.5,3.48212]
[1736162522751,0.69932,3646.6,3646.5,3.48212]
[1736162523153,0.425,3646.6,3646.5,3.48212]
[1736162523451,0.69932,3646.6,3646.5,3.48212]
[1736162523852,0.425,3646.6,3646.5,3.48212]
[1736162525248,1.06,3646.7,3646.5,3.2078]
[1736162525449,1.06,3646.7,3646.6,0.27432]
[1736162526158,0.4374,3646.9,3646.6,2.2010279]
[1736162526358,0.4321,3647.1,3647.0,0.27429]
[1736162526755,1.4921,3647.1,3647.0,0.27429]
[1736162527054,1.4921,3647.1,3647.0,41.07429]
[1736162527650,1.76638,3647.1,3647.0,41.07429]
[1736162527948,1.4921,3647.1,3647.0,41.07429]
[1736162528754,0.4321,3647.1,3647.0,41.07429]
[1736162528954,1.4921,3647.1,3647.0,41.07429]
[1736162530155,0.4321,3647.1,3647.0,41.07429]
[1736162530353,1.059,3647.1,3647.0,41.07429]
[1736162532652,1.059,3647.1,3647.0,0.27429]
[1736162533256,1.059,3647.1,3647.0,41.07429]
[1736162533562,0.4279,3647.3,3647.2,0.27427]
[1736162534962,0.70217,3647.3,3647.2,0.27427]
[1736162535357,0.70217,3647.3,3647.2,0.70107]
[1736162536158,0.4279,3647.3,3647.1,0.2744]
[1736162536358,0.4279,3647.3,3647.1,0.54867]
[1736162536359,0.27427,3647.2,3647.1,0.54867]
[1736162537761,0.70217,3647.3,3647.2,0.27427]
[1736162538765,0.4279,3647.3,3647.2,0.27427]
[1736162538972,0.4279,3647.3,3647.2,2.4752979]
[1736162539270,0.4215,3647.6,3647.2,2.2010279]
[1736162539468,1.11635,3647.6,3647.5,0.27425]
[1736162539771,0.8421,3647.6,3647.5,2.4752779]
[1736162539964,0.4128,3648.0,3647.5,2.2010279]
[1736162540165,0.69483,3647.9,3647.8,0.27422]
[1736162540661,0.27424,3647.8,3647.7,0.27423]
[1736162541468,0.27424,3647.7,3647.6,0.68374]
[1736162542059,1.33324,3647.7,3647.6,0.68374]
[1736162542664,1.33324,3647.7,3647.6,0.4095]
[1736162542872,1.33324,3647.7,3647.6,0.68374]
[1736162543563,1.33324,3647.7,3647.6,0.4095]
[1736162544174,1.33324,3647.7,3647.6,0.68374]
[1736162544467,4.31315024,3648.7,3648.6,0.27417]
[1736162544665,6.46240368,3649.4,3649.3,0.27412]
[1736162544871,6.46240368,3649.4,3649.3,46.4829479]
[1736162545764,6.46240368,3649.4,3649.3,44.28192]
[1736162545965,0.27411,3649.4,3649.3,40.8]
[1736162546270,0.27415,3648.9,3648.8,4.2867138]
[1736162546668,1.38515,3648.9,3648.8,4.2867138]
[1736162546874,2.392,3648.9,3648.8,4.2867138]
[1736162547171,2.66615,3648.9,3648.8,4.2867138]
[1736162547372,2.66615,3648.9,3648.6,0.27416]
[1736162547675,1.111,3648.8,3648.7,2.4751879]
[1736162547973,1.111,3648.8,3648.7,2.2010279]
[1736162548269,1.111,3648.8,3648.7,2.4751879]
[1736162548968,1.111,3648.8,3648.6,0.27417]
[1736162549165,1.111,3648.7,3648.6,0.27417]
[1736162550375,1.5275,3648.9,3648.8,0.27415]
[1736162550575,1.5275,3648.9,3648.8,2.4751779]
[1736162550876,3.2078,3650.0,3648.8,2.2010279]
[1736162551167,1.11,3649.8,3649.5,0.2741]
[1736162551368,1.11,3649.8,3649.3,3.2078]
[1736162551570,3.2078,3649.4,3648.9,40.8]
[1736162551769,0.27414,3649.0,3648.8,3.48195]
[1736162551965,1.2842,3649.3,3648.8,3.48195]
[1736162551966,1.38415,3648.9,3648.8,3.2078]
[1736162552166,1.11,3648.9,3648.8,3.48195]
[1736162554775,1.11,3649.4,3648.8,3.4822]
[1736162554970,1.11,3649.4,3649.3,5.6829479]
[1736162556179,1.11,3649.7,3649.6,0.27409]
[1736162556377,1.11,3649.7,3649.6,2.4751179]
[1736162556576,1.11,3649.7,3649.6,43.2751179]
[1736162557075,1.11,3649.7,3649.6,43.9601179]
[1736162557275,0.4371,3649.8,3649.7,0.27409]
[1736162557472,1.5471,3649.8,3649.7,0.27409]
[1736162559372,0.4371,3649.8,3649.7,0.27409]
[1736162559577,1.5344,3649.9,3649.6,2.8860279]
[1736162559769,1.5344,3649.9,3649.8,0.27408]